{"text_format":"3","workbook":"xlsx","n_sheets":4,"sheets":["Podsumowanie","Aktywa","Zobowiązania","Kategorie"],"not_rendered":{"defined_names":10},"read":"whole","date_system":"1900"}

{"sheet":"Podsumowanie","index":0,"n_rows":12,"n_cols":4,"rows_kept":12}
[null,"Bilans"]
[null,null,{"$f":"\"Rok obrachunkowy \"&YEAR(TODAY())-1","v":"Rok obrachunkowy 2016"},{"$f":"\"Rok obrachunkowy\"&YEAR(TODAY())","v":"Rok obrachunkowy2017"}]
[null,"Typ aktywów","Poprzedni rok","Bieżący rok"]
[null,"Majątek obrotowy",{"$f":"SUMIFS(Aktywa[Poprzedni rok],Aktywa[Typ aktywów],Pulpit_nawigacyjny[[#This Row],[Typ aktywów]])+SUMIFS(Zobowiązania[Poprzedni rok],Zobowiązania[Typ zobowiązań],Pulpit_nawigacyjny[[#This Row],[Typ aktywów]])","v":600},{"$f":"SUMIFS(Aktywa[Bieżący rok],Aktywa[Typ aktywów],Pulpit_nawigacyjny[[#This Row],[Typ aktywów]])+SUMIFS(Zobowiązania[Bieżący rok],Zobowiązania[Typ zobowiązań],Pulpit_nawigacyjny[[#This Row],[Typ aktywów]])","v":600}]
[null,"Środki trwałe",{"$f":"SUMIFS(Aktywa[Poprzedni rok],Aktywa[Typ aktywów],Pulpit_nawigacyjny[[#This Row],[Typ aktywów]])+SUMIFS(Zobowiązania[Poprzedni rok],Zobowiązania[Typ zobowiązań],Pulpit_nawigacyjny[[#This Row],[Typ aktywów]])","v":{"v":-100,"d":"-100 "}},{"$f":"SUMIFS(Aktywa[Bieżący rok],Aktywa[Typ aktywów],Pulpit_nawigacyjny[[#This Row],[Typ aktywów]])+SUMIFS(Zobowiązania[Bieżący rok],Zobowiązania[Typ zobowiązań],Pulpit_nawigacyjny[[#This Row],[Typ aktywów]])","v":{"v":-85,"d":"-85 "}}]
[null,"Inne aktywa",{"$f":"SUMIFS(Aktywa[Poprzedni rok],Aktywa[Typ aktywów],Pulpit_nawigacyjny[[#This Row],[Typ aktywów]])+SUMIFS(Zobowiązania[Poprzedni rok],Zobowiązania[Typ zobowiązań],Pulpit_nawigacyjny[[#This Row],[Typ aktywów]])","v":0},{"$f":"SUMIFS(Aktywa[Bieżący rok],Aktywa[Typ aktywów],Pulpit_nawigacyjny[[#This Row],[Typ aktywów]])+SUMIFS(Zobowiązania[Bieżący rok],Zobowiązania[Typ zobowiązań],Pulpit_nawigacyjny[[#This Row],[Typ aktywów]])","v":0}]
[null,"Bieżące zobowiązania",{"$f":"SUMIFS(Aktywa[Poprzedni rok],Aktywa[Typ aktywów],Pulpit_nawigacyjny[[#This Row],[Typ aktywów]])+SUMIFS(Zobowiązania[Poprzedni rok],Zobowiązania[Typ zobowiązań],Pulpit_nawigacyjny[[#This Row],[Typ aktywów]])","v":500},{"$f":"SUMIFS(Aktywa[Bieżący rok],Aktywa[Typ aktywów],Pulpit_nawigacyjny[[#This Row],[Typ aktywów]])+SUMIFS(Zobowiązania[Bieżący rok],Zobowiązania[Typ zobowiązań],Pulpit_nawigacyjny[[#This Row],[Typ aktywów]])","v":350}]
[null,"Zobowiązania długoterminowe",{"$f":"SUMIFS(Aktywa[Poprzedni rok],Aktywa[Typ aktywów],Pulpit_nawigacyjny[[#This Row],[Typ aktywów]])+SUMIFS(Zobowiązania[Poprzedni rok],Zobowiązania[Typ zobowiązań],Pulpit_nawigacyjny[[#This Row],[Typ aktywów]])","v":0},{"$f":"SUMIFS(Aktywa[Bieżący rok],Aktywa[Typ aktywów],Pulpit_nawigacyjny[[#This Row],[Typ aktywów]])+SUMIFS(Zobowiązania[Bieżący rok],Zobowiązania[Typ zobowiązań],Pulpit_nawigacyjny[[#This Row],[Typ aktywów]])","v":0}]
[null,"Kapitał własny",{"$f":"SUMIFS(Aktywa[Poprzedni rok],Aktywa[Typ aktywów],Pulpit_nawigacyjny[[#This Row],[Typ aktywów]])+SUMIFS(Zobowiązania[Poprzedni rok],Zobowiązania[Typ zobowiązań],Pulpit_nawigacyjny[[#This Row],[Typ aktywów]])","v":0},{"$f":"SUMIFS(Aktywa[Bieżący rok],Aktywa[Typ aktywów],Pulpit_nawigacyjny[[#This Row],[Typ aktywów]])+SUMIFS(Zobowiązania[Bieżący rok],Zobowiązania[Typ zobowiązań],Pulpit_nawigacyjny[[#This Row],[Typ aktywów]])","v":350}]
[null,"Suma aktywów",{"$f":"Aktywa[[#Totals],[Poprzedni rok]]","v":500},{"$f":"Aktywa[[#Totals],[Bieżący rok]]","v":515}]
[null,"Suma zobowiązań i kapitału akcyjnego",{"$f":"Zobowiązania[[#Totals],[Poprzedni rok]]","v":500},{"$f":"Zobowiązania[[#Totals],[Bieżący rok]]","v":700}]
[null,"Saldo",{"$f":"C10-C11","v":0},{"$f":"D10-D11","v":{"v":-185,"d":"-185 "}}]

{"sheet":"Aktywa","index":1,"n_rows":14,"n_cols":5,"rows_kept":14}
[null,"Aktywa"]
[{"$nulls":3},{"$f":"ROK_OBR","v":"Rok obrachunkowy 2016"},{"$f":"ROK_OBR_2","v":"Rok obrachunkowy2017"}]
[null,"Typ aktywów","Opis","Poprzedni rok","Bieżący rok"]
[null,"Majątek obrotowy","Gotówka",600,600]
[null,"Majątek obrotowy","Inwestycje"]
[null,"Majątek obrotowy","Zapasy"]
[null,"Majątek obrotowy","Należności"]
[null,"Majątek obrotowy","Wydatki płacone z góry"]
[null,"Środki trwałe","Nieruchomości i wyposażenie"]
[null,"Środki trwałe","Ulepszenia mienia dzierżawionego"]
[null,"Środki trwałe","Majątek i inne inwestycje"]
[null,"Środki trwałe","Pomniejszenie i amortyzacja skumulowana (wartość ujemna)",{"v":-100,"d":"-100 "},{"v":-85,"d":"-85 "}]
[null,"Inne aktywa","Cele charytatywne"]
[null,"Suma aktywów",null,{"$f":"SUBTOTAL(109,Aktywa[Poprzedni rok])","v":500},{"$f":"SUBTOTAL(109,Aktywa[Bieżący rok])","v":515}]

{"sheet":"Zobowiązania","index":2,"n_rows":12,"n_cols":5,"rows_kept":12}
[null,"Zobowiązania"]
[{"$nulls":3},{"$f":"ROK_OBR","v":"Rok obrachunkowy 2016"},{"$f":"ROK_OBR_2","v":"Rok obrachunkowy2017"}]
[null,"Typ zobowiązań","Opis","Poprzedni rok","Bieżący rok"]
[null,"Bieżące zobowiązania","Zobow. z tytułu dostaw i usług",null,350]
[null,"Bieżące zobowiązania","Należne pensje"]
[null,"Bieżące zobowiązania","Należne wynagrodzenia",500]
[null,"Bieżące zobowiązania","Należny podatek dochodowy"]
[null,"Bieżące zobowiązania","Przychody przyszłych okresów"]
[null,"Zobowiązania długoterminowe","Należności hipoteczne"]
[null,"Kapitał własny","Kapitał inwestycyjny",null,350]
[null,"Kapitał własny","Skumulowane dochody zatrzymane"]
[null,"Suma zobowiązań i kapitału akcyjnego",null,{"$f":"SUBTOTAL(109,Zobowiązania[Poprzedni rok])","v":500},{"$f":"SUBTOTAL(109,Zobowiązania[Bieżący rok])","v":700}]

{"sheet":"Kategorie","index":3,"n_rows":9,"n_cols":2,"rows_kept":9}
[null,"Kategorie"]
[]
[null,"Kategorie"]
[null,"Majątek obrotowy"]
[null,"Środki trwałe"]
[null,"Inne aktywa"]
[null,"Bieżące zobowiązania"]
[null,"Zobowiązania długoterminowe"]
[null,"Kapitał własny"]